[Event "Early-Titled-Tuesday-Blitz-March-05-2024"]
[Site "Chess.com"]
[Date "2024.03.05"]
[Round "2"]
[White "Baku_Boulevard"]
[Black "jens1102"]
[Result "1-0"]
[WhiteElo "3073"]
[BlackElo "2630"]
[TimeControl "180+1"]
[EndTime "8:18:04 PST"]
[Termination "Baku_Boulevard won by resignation"]

1. e4 {[%clk 0:03:00.9]} 1... e5 {[%clk 0:02:59.7]} 2. Nf3 {[%clk 0:03:00.8]}
2... Nc6 {[%clk 0:03:00.3]} 3. Bc4 {[%clk 0:03:00.6]} 3... Bc5 {[%clk 0:03:00]}
4. c3 {[%clk 0:03:00.7]} 4... Nf6 {[%clk 0:03:00.1]} 5. d3 {[%clk 0:03:01.2]}
5... d6 {[%clk 0:03:00.1]} 6. Nbd2 {[%clk 0:03:00.7]} 6... a5 {[%clk 0:03:00.5]}
7. h3 {[%clk 0:03:00.5]} 7... Ba7 {[%clk 0:03:00.8]} 8. Nf1 {[%clk 0:03:00.5]}
8... O-O {[%clk 0:03:01.2]} 9. Ng3 {[%clk 0:03:00.1]} 9... Be6 {[%clk
0:03:01.6]} 10. Bb5 {[%clk 0:02:59.8]} 10... Ne7 {[%clk 0:02:58.9]} 11. O-O
{[%clk 0:02:59.5]} 11... c6 {[%clk 0:02:58.9]} 12. Ba4 {[%clk 0:02:59.9]} 12...
b5 {[%clk 0:02:58.4]} 13. Bc2 {[%clk 0:03:00.1]} 13... Ng6 {[%clk 0:02:58.6]}
14. d4 {[%clk 0:03:00.6]} 14... a4 {[%clk 0:02:48]} 15. a3 {[%clk 0:02:59.3]}
15... h6 {[%clk 0:02:46.4]} 16. Be3 {[%clk 0:02:56.7]} 16... Qd7 {[%clk
0:02:42.1]} 17. Kh2 {[%clk 0:02:54.4]} 17... Rfe8 {[%clk 0:02:42]} 18. Qd2
{[%clk 0:02:54.1]} 18... Kh7 {[%clk 0:02:41.5]} 19. Rfe1 {[%clk 0:02:54.5]}
19... Rad8 {[%clk 0:02:38.7]} 20. Rad1 {[%clk 0:02:53.9]} 20... Bc4 {[%clk
0:02:25]} 21. Nf5 {[%clk 0:02:49.2]} 21... exd4 {[%clk 0:02:11.3]} 22. Bxh6
{[%clk 0:02:46.6]} 22... Nxe4 {[%clk 0:00:58.4]} 23. Rxe4 {[%clk 0:02:40.5]}
23... d3 {[%clk 0:00:54.3]} 24. Bxg7 {[%clk 0:01:57.5]} 24... Qxf5 {[%clk
0:00:52.8]} 25. Qh6+ {[%clk 0:01:57.1]} 25... Kg8 {[%clk 0:00:53.3]} 26. Rh4
{[%clk 0:01:57.8]} 26... f6 {[%clk 0:00:31.6]} 27. Qh7+ {[%clk 0:00:48.3]} 27...
Kf7 {[%clk 0:00:31.5]} 28. Bh6+ {[%clk 0:00:48.6]} 28... Ke6 {[%clk 0:00:31.5]}
29. Qxa7 {[%clk 0:00:48.6]} 29... dxc2 {[%clk 0:00:29.3]} 30. Re1+ {[%clk
0:00:45.3]} 30... Qe5+ {[%clk 0:00:16.4]} 31. Nxe5 {[%clk 0:00:44]} 31... dxe5
{[%clk 0:00:17.3]} 32. Rxc4 {[%clk 0:00:42.4]} 32... bxc4 {[%clk 0:00:17.5]} 33.
Qc5 {[%clk 0:00:42.2]} 33... Rd1 {[%clk 0:00:17.8]} 34. Qxc4+ {[%clk 0:00:41.8]}
34... Ke7 {[%clk 0:00:17.8]} 35. Re2 {[%clk 0:00:41.3]} 35... c1=Q {[%clk
0:00:17.3]} 36. Bxc1 {[%clk 0:00:41.2]} 36... Rxc1 {[%clk 0:00:18.2]} 37. Qg4
{[%clk 0:00:36.9]} 37... Nf8 {[%clk 0:00:17.2]} 38. f4 {[%clk 0:00:35.4]} 38...
Kd6 {[%clk 0:00:14.3]} 39. fxe5+ {[%clk 0:00:34.5]} 39... fxe5 {[%clk
0:00:14.9]} 40. Rd2+ {[%clk 0:00:34.3]} 40... Kc7 {[%clk 0:00:15]} 41. Qxa4
{[%clk 0:00:33.5]} 41... Ne6 {[%clk 0:00:15.1]} 42. Qa7+ {[%clk 0:00:33]} 42...
Kc8 {[%clk 0:00:15.6]} 43. Qd7+ {[%clk 0:00:33.3]} 1-0

[Event "Early-Titled-Tuesday-Blitz-March-05-2024"]
[Site "Chess.com"]
[Date "2024.03.05"]
[Round "2"]
[White "epiclord678"]
[Black "AdrianaPalao"]
[Result "1-0"]
[WhiteElo "2423"]
[BlackElo "1931"]
[TimeControl "180+1"]
[EndTime "8:18:04 PST"]
[Termination "epiclord678 won by resignation"]

1. e4 {[%clk 0:02:59.9]} 1... e5 {[%clk 0:02:59.1]} 2. Nf3 {[%clk 0:02:59.9]}
2... d6 {[%clk 0:02:59.7]} 3. d4 {[%clk 0:02:58.9]} 3... Nd7 {[%clk 0:03:00]} 4.
Nc3 {[%clk 0:02:58.3]} 4... c6 {[%clk 0:02:59.6]} 5. Bc4 {[%clk 0:02:55.3]} 5...
Be7 {[%clk 0:03:00.2]} 6. O-O {[%clk 0:02:55.1]} 6... Ngf6 {[%clk 0:03:00.8]} 7.
Re1 {[%clk 0:02:55.2]} 7... O-O {[%clk 0:03:00.3]} 8. h3 {[%clk 0:02:54.9]} 8...
Qc7 {[%clk 0:02:56.9]} 9. a4 {[%clk 0:02:54.6]} 9... b6 {[%clk 0:02:56.9]} 10.
Bb3 {[%clk 0:02:51.1]} 10... Bb7 {[%clk 0:02:57.3]} 11. Be3 {[%clk 0:02:49.4]}
11... a6 {[%clk 0:02:54]} 12. Qe2 {[%clk 0:02:24.1]} 12... b5 {[%clk 0:02:50.2]}
13. axb5 {[%clk 0:02:02.4]} 13... axb5 {[%clk 0:02:51.1]} 14. Nd2 {[%clk
0:01:41.5]} 14... Rxa1 {[%clk 0:02:19.1]} 15. Rxa1 {[%clk 0:01:40.9]} 15... b4
{[%clk 0:02:18.1]} 16. Na4 {[%clk 0:01:39.1]} 16... exd4 {[%clk 0:02:16.4]} 17.
Bxd4 {[%clk 0:01:36.5]} 17... c5 {[%clk 0:02:16.5]} 18. Be3 {[%clk 0:01:24]}
18... Nxe4 {[%clk 0:01:40.1]} 19. Nxe4 {[%clk 0:01:23.7]} 19... Bxe4 {[%clk
0:01:40.3]} 20. Bf4 {[%clk 0:01:07.7]} 20... Nf6 {[%clk 0:01:38.1]} 21. f3
{[%clk 0:00:57.6]} 21... Bc6 {[%clk 0:01:32.8]} 22. Nxc5 {[%clk 0:00:44.7]}
22... Re8 {[%clk 0:00:32.1]} 23. Nd3 {[%clk 0:00:43.4]} 23... Qb7 {[%clk
0:00:18.8]} 24. Qf2 {[%clk 0:00:43.3]} 24... d5 {[%clk 0:00:18]} 25. Re1 {[%clk
0:00:39.8]} 25... Rc8 {[%clk 0:00:09.9]} 26. Be5 {[%clk 0:00:32.7]} 26... Bb5
{[%clk 0:00:09.5]} 27. Qg3 {[%clk 0:00:27]} 27... Bxd3 {[%clk 0:00:07.8]} 28.
cxd3 {[%clk 0:00:27.9]} 28... Qb6+ {[%clk 0:00:07.5]} 29. d4 {[%clk 0:00:28.1]}
29... Nh5 {[%clk 0:00:05.5]} 30. Qg4 {[%clk 0:00:28]} 30... Qg6 {[%clk
0:00:04.5]} 31. Qxc8+ {[%clk 0:00:28.2]} 1-0

[Event "Early-Titled-Tuesday-Blitz-March-05-2024"]
[Site "Chess.com"]
[Date "2024.03.05"]
[Round "2"]
[White "Viktor_Poddubnyi"]
[Black "Joachim100x"]
[Result "1/2-1/2"]
[WhiteElo "2269"]
[BlackElo "2483"]
[TimeControl "180+1"]
[EndTime "8:18:05 PST"]
[Termination "Game drawn - insufficient material"]

1. e4 {[%clk 0:03:00]} 1... c5 {[%clk 0:02:59.9]} 2. Nf3 {[%clk 0:02:59.8]} 2...
e6 {[%clk 0:03:00.3]} 3. g3 {[%clk 0:02:59.4]} 3... d5 {[%clk 0:03:00.3]} 4.
exd5 {[%clk 0:03:00.3]} 4... exd5 {[%clk 0:03:00.7]} 5. d4 {[%clk 0:03:00.9]}
5... Nf6 {[%clk 0:03:01.1]} 6. Bg2 {[%clk 0:03:01.2]} 6... Nc6 {[%clk
0:03:01.6]} 7. O-O {[%clk 0:03:01.6]} 7... Bd6 {[%clk 0:03:01.9]} 8. dxc5 {[%clk
0:03:00.8]} 8... Bxc5 {[%clk 0:03:02.1]} 9. Re1+ {[%clk 0:03:01]} 9... Be6
{[%clk 0:03:02.3]} 10. Nc3 {[%clk 0:02:53.4]} 10... O-O {[%clk 0:03:02.2]} 11.
Bg5 {[%clk 0:02:51.5]} 11... Be7 {[%clk 0:03:02.2]} 12. Nd4 {[%clk 0:02:47.5]}
12... Nxd4 {[%clk 0:03:02.4]} 13. Qxd4 {[%clk 0:02:48.4]} 13... h6 {[%clk
0:03:03.1]} 14. Bf4 {[%clk 0:02:44.7]} 14... a6 {[%clk 0:03:01.4]} 15. Rad1
{[%clk 0:02:42]} 15... Rc8 {[%clk 0:03:01.3]} 16. h3 {[%clk 0:02:26.3]} 16...
Qa5 {[%clk 0:03:01.3]} 17. a3 {[%clk 0:02:04.3]} 17... Rfd8 {[%clk 0:02:58.4]}
18. Re2 {[%clk 0:01:53]} 18... Rc4 {[%clk 0:02:54.3]} 19. Qd2 {[%clk 0:01:35.9]}
19... d4 {[%clk 0:02:53.8]} 20. Ne4 {[%clk 0:01:28.6]} 20... Qxd2 {[%clk
0:02:52.8]} 21. Nxf6+ {[%clk 0:01:19.8]} 21... Bxf6 {[%clk 0:02:52.8]} 22. Rexd2
{[%clk 0:01:19.9]} 22... b5 {[%clk 0:02:47.5]} 23. c3 {[%clk 0:01:11.6]} 23...
Bd5 {[%clk 0:02:38.5]} 24. Bxd5 {[%clk 0:00:52.2]} 24... Rxd5 {[%clk 0:02:36.2]}
25. Be3 {[%clk 0:00:51.7]} 25... Kf8 {[%clk 0:02:17]} 26. Bxd4 {[%clk 0:00:51]}
26... Bxd4 {[%clk 0:02:17.1]} 27. Rxd4 {[%clk 0:00:51.9]} 27... Rdxd4 {[%clk
0:02:13.6]} 28. Rxd4 {[%clk 0:00:52.8]} 28... Rc6 {[%clk 0:02:13.6]} 29. Rd7
{[%clk 0:00:49.8]} 29... Re6 {[%clk 0:02:11.7]} 30. Kf1 {[%clk 0:00:48.8]} 30...
g5 {[%clk 0:02:11.7]} 31. Rd4 {[%clk 0:00:45.8]} 31... Ke7 {[%clk 0:02:10.9]}
32. a4 {[%clk 0:00:45.6]} 32... Rb6 {[%clk 0:02:03.6]} 33. axb5 {[%clk
0:00:40.8]} 33... Rxb5 {[%clk 0:02:00.9]} 34. b4 {[%clk 0:00:39.1]} 34... a5
{[%clk 0:01:56.5]} 35. bxa5 {[%clk 0:00:38]} 35... Rxa5 {[%clk 0:01:56.8]} 36.
h4 {[%clk 0:00:34.9]} 36... f6 {[%clk 0:01:54.6]} 37. Rd3 {[%clk 0:00:25.2]}
37... Ra2 {[%clk 0:01:53.2]} 38. hxg5 {[%clk 0:00:22.4]} 38... hxg5 {[%clk
0:01:53]} 39. g4 {[%clk 0:00:21.9]} 39... Ke6 {[%clk 0:01:53]} 40. Kg2 {[%clk
0:00:21.3]} 40... Rc2 {[%clk 0:01:52.9]} 41. Kf3 {[%clk 0:00:21.2]} 41... Ke5
{[%clk 0:01:53.3]} 42. Ke3 {[%clk 0:00:21.2]} 42... Rc1 {[%clk 0:01:52]} 43. Kd2
{[%clk 0:00:20.3]} 43... Rg1 {[%clk 0:01:49.6]} 44. f3 {[%clk 0:00:19.6]} 44...
Ra1 {[%clk 0:01:47.2]} 45. c4 {[%clk 0:00:19.3]} 45... Ra2+ {[%clk 0:01:45.1]}
46. Kc3 {[%clk 0:00:18.5]} 46... Ra3+ {[%clk 0:01:45.2]} 47. Kc2 {[%clk
0:00:18.6]} 47... Ra1 {[%clk 0:01:33.7]} 48. c5 {[%clk 0:00:16.7]} 48... Ra5
{[%clk 0:01:30.1]} 49. Rc3 {[%clk 0:00:15]} 49... Ra7 {[%clk 0:01:27.3]} 50. c6
{[%clk 0:00:14.9]} 50... Rc7 {[%clk 0:01:27.6]} 51. Kd3 {[%clk 0:00:15]} 51...
Kd5 {[%clk 0:01:28]} 52. Ke3 {[%clk 0:00:14.1]} 52... Rxc6 {[%clk 0:01:21.6]}
53. Rxc6 {[%clk 0:00:14]} 53... Kxc6 {[%clk 0:01:21.7]} 54. Ke4 {[%clk
0:00:14.3]} 54... Kd6 {[%clk 0:01:22.1]} 55. Kf5 {[%clk 0:00:14.4]} 55... Ke7
{[%clk 0:01:21.8]} 56. f4 {[%clk 0:00:14.3]} 56... gxf4 {[%clk 0:01:21.6]} 57.
Kxf4 {[%clk 0:00:15.2]} 57... Kf7 {[%clk 0:01:21.9]} 58. Kf5 {[%clk 0:00:15.3]}
58... Kg7 {[%clk 0:01:22]} 59. g5 {[%clk 0:00:15.5]} 59... fxg5 {[%clk
0:01:22.1]} 60. Kxg5 {[%clk 0:00:16.4]} 1/2-1/2

[Event "Early-Titled-Tuesday-Blitz-March-05-2024"]
[Site "Chess.com"]
[Date "2024.03.05"]
[Round "2"]
[White "NLLO777"]
[Black "FoggyMorning"]
[Result "0-1"]
[WhiteElo "2513"]
[BlackElo "2725"]
[TimeControl "180+1"]
[EndTime "8:18:06 PST"]
[Termination "FoggyMorning won on time"]

1. Nf3 {[%clk 0:03:00.9]} 1... d5 {[%clk 0:02:59.6]} 2. c4 {[%clk 0:02:58.2]}
2... e6 {[%clk 0:02:57.3]} 3. g3 {[%clk 0:02:55.2]} 3... Nf6 {[%clk 0:02:56.5]}
4. Bg2 {[%clk 0:02:55.2]} 4... Be7 {[%clk 0:02:57.1]} 5. O-O {[%clk 0:02:55.5]}
5... O-O {[%clk 0:02:57.4]} 6. d4 {[%clk 0:02:56.1]} 6... a5 {[%clk 0:02:51.3]}
7. Qc2 {[%clk 0:02:53.9]} 7... c6 {[%clk 0:02:51]} 8. Nbd2 {[%clk 0:02:52.2]}
8... c5 {[%clk 0:02:17]} 9. cxd5 {[%clk 0:02:43.5]} 9... cxd4 {[%clk 0:02:08.9]}
10. Nxd4 {[%clk 0:02:35.6]} 10... exd5 {[%clk 0:02:08.8]} 11. N2f3 {[%clk
0:02:28.2]} 11... Na6 {[%clk 0:01:41.2]} 12. Rd1 {[%clk 0:02:16.1]} 12... Be6
{[%clk 0:01:37]} 13. Be3 {[%clk 0:02:11.3]} 13... Rc8 {[%clk 0:01:31.3]} 14.
Nxe6 {[%clk 0:01:39]} 14... fxe6 {[%clk 0:01:23.5]} 15. Qb3 {[%clk 0:01:35.6]}
15... Nc5 {[%clk 0:01:14.7]} 16. Qb5 {[%clk 0:01:35.3]} 16... Nfe4 {[%clk
0:01:11.2]} 17. Rac1 {[%clk 0:01:28.1]} 17... b6 {[%clk 0:00:59.6]} 18. Nd4
{[%clk 0:01:21.6]} 18... Qd6 {[%clk 0:00:48.8]} 19. a3 {[%clk 0:01:03.5]} 19...
e5 {[%clk 0:00:43.3]} 20. Nb3 {[%clk 0:00:55]} 20... d4 {[%clk 0:00:38.1]} 21.
Nxc5 {[%clk 0:00:50.5]} 21... Nxc5 {[%clk 0:00:39]} 22. Bd2 {[%clk 0:00:43.3]}
22... Qf6 {[%clk 0:00:35.2]} 23. Be1 {[%clk 0:00:40]} 23... Kh8 {[%clk
0:00:31.6]} 24. Rc4 {[%clk 0:00:32.8]} 24... a4 {[%clk 0:00:20.4]} 25. Rdc1
{[%clk 0:00:30.9]} 25... Rcd8 {[%clk 0:00:20.4]} 26. Bf3 {[%clk 0:00:15.1]}
26... d3 {[%clk 0:00:18.5]} 27. Qc6 {[%clk 0:00:02.4]} 27... d2 {[%clk
0:00:12.1]} 28. Qxf6 {[%clk 0:00:01.6]} 28... Bxf6 {[%clk 0:00:12.5]} 29. Bxd2
{[%clk 0:00:01.5]} 29... Rxd2 {[%clk 0:00:13.4]} 0-1

[Event "Early-Titled-Tuesday-Blitz-March-05-2024"]
[Site "Chess.com"]
[Date "2024.03.05"]
[Round "2"]
[White "Shuvalov"]
[Black "ClauSanLuis"]
[Result "1-0"]
[WhiteElo "2531"]
[BlackElo "2320"]
[TimeControl "180+1"]
[EndTime "8:18:07 PST"]
[Termination "Shuvalov won by resignation"]

1. d4 {[%clk 0:03:00.9]} 1... Nf6 {[%clk 0:02:58.6]} 2. c4 {[%clk 0:03:00.5]}
2... e6 {[%clk 0:02:58.2]} 3. Nc3 {[%clk 0:03:00.1]} 3... d5 {[%clk 0:02:58]} 4.
Nf3 {[%clk 0:02:59.1]} 4... c5 {[%clk 0:02:57.6]} 5. cxd5 {[%clk 0:02:57.9]}
5... exd5 {[%clk 0:02:58.5]} 6. Bg5 {[%clk 0:02:57.3]} 6... c4 {[%clk
0:02:52.2]} 7. g3 {[%clk 0:02:54.6]} 7... Bb4 {[%clk 0:02:50.7]} 8. Bg2 {[%clk
0:02:53.4]} 8... O-O {[%clk 0:02:49.5]} 9. O-O {[%clk 0:02:53.2]} 9... Bxc3
{[%clk 0:02:46.3]} 10. bxc3 {[%clk 0:02:52.3]} 10... Bf5 {[%clk 0:02:46.4]} 11.
Ne5 {[%clk 0:02:48.7]} 11... Nc6 {[%clk 0:02:32.5]} 12. Qa4 {[%clk 0:02:26.9]}
12... Nxe5 {[%clk 0:02:07]} 13. dxe5 {[%clk 0:02:26.5]} 13... Qd7 {[%clk
0:02:07.6]} 14. Qxd7 {[%clk 0:02:14]} 14... Nxd7 {[%clk 0:02:07.5]} 15. Bxd5
{[%clk 0:02:14]} 15... Nxe5 {[%clk 0:02:07.2]} 16. Bxb7 {[%clk 0:02:09.7]} 16...
Rab8 {[%clk 0:02:06.5]} 17. Bg2 {[%clk 0:02:00.5]} 17... Rb2 {[%clk 0:02:05.8]}
18. Rfe1 {[%clk 0:01:56.3]} 18... f6 {[%clk 0:01:59.6]} 19. Be3 {[%clk
0:01:55.1]} 19... a5 {[%clk 0:01:48.3]} 20. a4 {[%clk 0:01:52.4]} 20... Rfb8
{[%clk 0:01:39.4]} 21. Bd5+ {[%clk 0:01:43.3]} 21... Kh8 {[%clk 0:01:36.9]} 22.
Bd4 {[%clk 0:01:36.4]} 22... Bg4 {[%clk 0:01:28.8]} 23. f3 {[%clk 0:01:33.3]}
23... Bh5 {[%clk 0:01:24.9]} 24. Be4 {[%clk 0:01:17.9]} 24... g5 {[%clk
0:01:19.3]} 25. Rab1 {[%clk 0:01:11.2]} 25... Bg6 {[%clk 0:01:15.6]} 26. Rxb2
{[%clk 0:01:05.4]} 26... Rxb2 {[%clk 0:01:14.6]} 27. Bxg6 {[%clk 0:00:59.5]}
27... hxg6 {[%clk 0:01:15.5]} 28. Kf1 {[%clk 0:00:57.1]} 28... Kg7 {[%clk
0:01:13.1]} 29. Rd1 {[%clk 0:00:55.1]} 29... Nc6 {[%clk 0:01:12]} 30. Bf2 {[%clk
0:00:48.2]} 30... Ra2 {[%clk 0:01:12]} 31. Rd7+ {[%clk 0:00:46.9]} 31... Kh6
{[%clk 0:01:11.1]} 32. Rd6 {[%clk 0:00:47.1]} 32... Ne7 {[%clk 0:01:06.7]} 33.
Rxf6 {[%clk 0:00:46.7]} 33... Nd5 {[%clk 0:01:06.2]} 34. Rc6 {[%clk 0:00:41.1]}
34... Nxc3 {[%clk 0:01:06]} 35. Rxc4 {[%clk 0:00:39.5]} 35... Nxa4 {[%clk
0:00:55.8]} 36. Bd4 {[%clk 0:00:38.6]} 36... g4 {[%clk 0:00:33.1]} 37. f4 {[%clk
0:00:37]} 37... g5 {[%clk 0:00:31.3]} 38. f5 {[%clk 0:00:36.9]} 38... Kh5 {[%clk
0:00:30.1]} 39. Rc8 {[%clk 0:00:31.8]} 1-0

[Event "Early-Titled-Tuesday-Blitz-March-05-2024"]
[Site "Chess.com"]
[Date "2024.03.05"]
[Round "2"]
[White "PepeCuenca"]
[Black "ikhasu"]
[Result "0-1"]
[WhiteElo "2688"]
[BlackElo "2453"]
[TimeControl "180+1"]
[EndTime "8:18:10 PST"]
[Termination "ikhasu won by checkmate"]

1. d4 {[%clk 0:03:00.9]} 1... Nf6 {[%clk 0:02:56.4]} 2. Bf4 {[%clk 0:03:00.8]}
2... g6 {[%clk 0:02:54.7]} 3. Nc3 {[%clk 0:03:00.9]} 3... d5 {[%clk 0:02:53.3]}
4. e3 {[%clk 0:03:01.4]} 4... Bg7 {[%clk 0:02:53.5]} 5. h4 {[%clk 0:03:01.8]}
5... h6 {[%clk 0:02:47.4]} 6. Nf3 {[%clk 0:02:59.5]} 6... c6 {[%clk 0:02:47.4]}
7. Be2 {[%clk 0:02:46.7]} 7... Bf5 {[%clk 0:02:41.5]} 8. Ne5 {[%clk 0:02:45.6]}
8... h5 {[%clk 0:02:26.4]} 9. f3 {[%clk 0:02:17]} 9... Nbd7 {[%clk 0:02:26]} 10.
g4 {[%clk 0:02:15.6]} 10... hxg4 {[%clk 0:02:25.7]} 11. fxg4 {[%clk 0:02:16.5]}
11... Be4 {[%clk 0:02:25.7]} 12. Rh2 {[%clk 0:02:09.3]} 12... Qb6 {[%clk
0:02:06.7]} 13. Na4 {[%clk 0:01:10.8]} 13... Qb4+ {[%clk 0:01:57.9]} 14. c3
{[%clk 0:01:09.3]} 14... Qa5 {[%clk 0:01:51.4]} 15. b4 {[%clk 0:01:09.1]} 15...
Qd8 {[%clk 0:01:49.3]} 16. h5 {[%clk 0:00:57.3]} 16... gxh5 {[%clk 0:01:39.3]}
17. gxh5 {[%clk 0:00:58.2]} 17... Bh6 {[%clk 0:01:38.3]} 18. Qd2 {[%clk
0:00:48.2]} 18... Nxe5 {[%clk 0:01:34]} 19. Bxe5 {[%clk 0:00:34.9]} 19... Rg8
{[%clk 0:01:33.2]} 20. O-O-O {[%clk 0:00:32.1]} 20... a5 {[%clk 0:01:32.9]} 21.
b5 {[%clk 0:00:32.2]} 21... cxb5 {[%clk 0:01:14.8]} 22. Bxb5+ {[%clk 0:00:31.5]}
22... Kf8 {[%clk 0:01:15.1]} 23. Nc5 {[%clk 0:00:28.6]} 23... Qb6 {[%clk
0:01:09.6]} 24. a4 {[%clk 0:00:28.2]} 24... Rc8 {[%clk 0:01:00]} 25. Bxf6 {[%clk
0:00:27.4]} 25... Rxc5 {[%clk 0:00:59.7]} 26. dxc5 {[%clk 0:00:12.7]} 26... Qxf6
{[%clk 0:00:59.2]} 27. Kb2 {[%clk 0:00:13.2]} 27... Qe5 {[%clk 0:00:48.3]} 28.
Rf2 {[%clk 0:00:11.7]} 28... Qc7 {[%clk 0:00:45.1]} 29. Rdf1 {[%clk 0:00:10.4]}
29... f6 {[%clk 0:00:44.2]} 30. Rf4 {[%clk 0:00:09]} 30... Qxc5 {[%clk
0:00:39.4]} 31. R1f2 {[%clk 0:00:07.8]} 31... Bxf4 {[%clk 0:00:32.9]} 32. exf4
{[%clk 0:00:06.9]} 32... Rg1 {[%clk 0:00:32.4]} 33. Ka2 {[%clk 0:00:05.2]} 33...
Ra1+ {[%clk 0:00:25.1]} 34. Kb2 {[%clk 0:00:05.1]} 34... Qa3# {[%clk 0:00:25.1]}
0-1

[Event "Early-Titled-Tuesday-Blitz-March-05-2024"]
[Site "Chess.com"]
[Date "2024.03.05"]
[Round "2"]
[White "KuzubovYuriy"]
[Black "PositionalPanther"]
[Result "1-0"]
[WhiteElo "2983"]
[BlackElo "2611"]
[TimeControl "180+1"]
[EndTime "8:18:11 PST"]
[Termination "KuzubovYuriy won by resignation"]

1. d4 {[%clk 0:03:00.9]} 1... d5 {[%clk 0:02:59.9]} 2. c4 {[%clk 0:03:00.9]}
2... e6 {[%clk 0:03:00.2]} 3. Nc3 {[%clk 0:03:01]} 3... a6 {[%clk 0:03:00.3]} 4.
cxd5 {[%clk 0:02:59.5]} 4... exd5 {[%clk 0:03:01.2]} 5. Nf3 {[%clk 0:02:59.3]}
5... h6 {[%clk 0:03:01.6]} 6. Bf4 {[%clk 0:02:50.6]} 6... Nf6 {[%clk 0:03:00.8]}
7. e3 {[%clk 0:02:49.8]} 7... Bd6 {[%clk 0:02:56.6]} 8. Bd3 {[%clk 0:02:45.6]}
8... Bxf4 {[%clk 0:02:51.7]} 9. exf4 {[%clk 0:02:45.7]} 9... Bg4 {[%clk
0:02:34.4]} 10. Qe2+ {[%clk 0:02:45.5]} 10... Qe7 {[%clk 0:02:33.2]} 11. Qxe7+
{[%clk 0:02:44.8]} 11... Kxe7 {[%clk 0:02:34.1]} 12. Ne5 {[%clk 0:02:45]} 12...
Bc8 {[%clk 0:02:17.8]} 13. Kd2 {[%clk 0:02:42.9]} 13... Re8 {[%clk 0:02:16.3]}
14. Rhe1 {[%clk 0:02:42.8]} 14... Kf8 {[%clk 0:02:16.9]} 15. f3 {[%clk
0:02:42.7]} 15... Nbd7 {[%clk 0:01:59.9]} 16. Rac1 {[%clk 0:02:41.1]} 16... c6
{[%clk 0:01:57.7]} 17. Na4 {[%clk 0:02:32.4]} 17... Rb8 {[%clk 0:01:49.4]} 18.
g4 {[%clk 0:02:30.3]} 18... Re7 {[%clk 0:01:42.7]} 19. h4 {[%clk 0:02:28.6]}
19... Ne8 {[%clk 0:01:42.5]} 20. f5 {[%clk 0:02:23.3]} 20... Kg8 {[%clk
0:01:11.1]} 21. Re2 {[%clk 0:02:17.6]} 21... f6 {[%clk 0:01:07.2]} 22. Ng6
{[%clk 0:02:13.1]} 22... Rxe2+ {[%clk 0:01:06.6]} 23. Bxe2 {[%clk 0:02:14]}
23... Kf7 {[%clk 0:01:03.1]} 24. Bd3 {[%clk 0:02:11.6]} 24... Nf8 {[%clk
0:00:51.5]} 25. Re1 {[%clk 0:02:10.1]} 25... Nxg6 {[%clk 0:00:51.6]} 26. fxg6+
{[%clk 0:02:11]} 26... Kf8 {[%clk 0:00:52.1]} 27. Nb6 {[%clk 0:02:07.8]} 27...
Nd6 {[%clk 0:00:46.2]} 28. a4 {[%clk 0:01:58.4]} 28... a5 {[%clk 0:00:45.9]} 29.
Kc3 {[%clk 0:01:57.7]} 29... h5 {[%clk 0:00:35.3]} 30. gxh5 {[%clk 0:01:56.8]}
30... Bh3 {[%clk 0:00:34.6]} 31. b4 {[%clk 0:01:42.8]} 31... axb4+ {[%clk
0:00:34.1]} 32. Kxb4 {[%clk 0:01:43.7]} 32... Re8 {[%clk 0:00:31.4]} 33. Rxe8+
{[%clk 0:01:41.3]} 33... Kxe8 {[%clk 0:00:32.2]} 34. Kc5 {[%clk 0:01:40.6]}
34... Ke7 {[%clk 0:00:32.8]} 35. h6 {[%clk 0:01:29.5]} 35... gxh6 {[%clk
0:00:32.7]} 36. g7 {[%clk 0:01:28.9]} 36... Be6 {[%clk 0:00:33.1]} 37. Bh7
{[%clk 0:01:28.2]} 37... Ne8 {[%clk 0:00:15.3]} 38. g8=Q {[%clk 0:01:23.6]}
38... Bxg8 {[%clk 0:00:15.9]} 39. Bxg8 {[%clk 0:01:24.2]} 39... Ng7 {[%clk
0:00:15.4]} 40. a5 {[%clk 0:01:12.5]} 40... Nf5 {[%clk 0:00:15.2]} 41. h5 {[%clk
0:01:12.2]} 41... Nh4 {[%clk 0:00:06.2]} 42. Nc8+ {[%clk 0:01:07.7]} 42... Kd7
{[%clk 0:00:06.4]} 43. Nd6 {[%clk 0:01:08]} 43... Kc7 {[%clk 0:00:06.3]} 44. Nf7
{[%clk 0:01:05.6]} 44... Nxf3 {[%clk 0:00:06.7]} 45. Nxh6 {[%clk 0:01:04.7]}
45... Ng5 {[%clk 0:00:02.9]} 46. Kb4 {[%clk 0:01:01.4]} 46... Nf3 {[%clk
0:00:01.6]} 47. Nf5 {[%clk 0:00:59.7]} 47... Ng5 {[%clk 0:00:01.9]} 48. h6
{[%clk 0:00:59.2]} 48... b6 {[%clk 0:00:02.6]} 49. axb6+ {[%clk 0:00:58.9]}
49... Kxb6 {[%clk 0:00:03.5]} 50. h7 {[%clk 0:00:59.2]} 50... Nxh7 {[%clk
0:00:03.3]} 51. Bxh7 {[%clk 0:01:00.1]} 51... c5+ {[%clk 0:00:02.2]} 52. dxc5+
{[%clk 0:01:00.4]} 52... Kc6 {[%clk 0:00:03.1]} 53. Nd4+ {[%clk 0:01:00.7]}
53... Kd7 {[%clk 0:00:03.5]} 54. Bf5+ {[%clk 0:01:01.4]} 54... Kc7 {[%clk
0:00:04.1]} 55. Kb5 {[%clk 0:01:02]} 1-0